Cogmind - Beta 11 @@@ ROGUE MODE // 2022.04.06 @ 16:30:04 Player: Infomantis Result: Destroyed by G-67 Veteran with Plasma Rifle Performance ------------- Evolutions (5) 2500 Regions Visited (13) 2600 Robots Destroyed (55) 275 Value Destroyed (1934) 1934 Prototype IDs (22) 440 Alien Tech Used (1) 200 Bonus (500) 500 TOTAL SCORE: 8449 Bonus ------- Entered Garrisons 200 Met Zhirov 300 Cogmind --------- Core Integrity 0/1000 Matter 300/300 Energy 94/100 System Corruption 20% Temperature Cool (21) Movement Core (50) Location -4/Proximity Caves Parts ------- > --- POWER (2) -------- (None) > --- PROPULSION (5) --- VTOL Module > --- UTILITY (7) ------ Enhanced Optical Array Improved Signal Interpreter Improved Targeting Computer Advanced Targeting Computer > --- WEAPON (3) ------- (None) > --- INVENTORY (5) ---- Heavy Antimatter Reactor Advanced Heat Sink Improved Utility Shielding Advanced Hacking Suite Advanced Hacking Suite Peak State ------------ > --- POWER ------------ Heavy Antimatter Reactor > --- PROPULSION ------- Medium Treads Flexi-carbon Leg Flexi-carbon Leg Flexi-carbon Leg VTOL Module > --- UTILITY ---------- Large Storage Unit Enhanced Optical Array Improved Signal Interpreter Improved Targeting Computer Advanced Targeting Computer Actuator Array Experimental Power Shielding > --- WEAPON ----------- Gauss Rifle Heavy Mace Axe > --- INVENTORY -------- Compact Wheel Advanced Heat Sink Improved Cooling System Medium Storage Unit Advanced Weight Redist. System Improved Launcher Guidance Computer Improved Utility Shielding Hardened Light Armor Plating Layered Medium Armor Plating Force Field Advanced Hacking Suite Advanced Hacking Suite System Shield Transdimensional Reconstructor Beamcaster [Rating: 68] Favorites ----------- Power Improved Deuterium Engine Engine Improved Deuterium Engine Power Core Micro Nuclear Core Reactor Light Antimatter Reactor Propulsion VTOL Module Treads Improved Medium Treads Leg VSS Leg Wheel Compact Wheel Hover Unit Improved Hover Unit Flight Unit VTOL Module Utility Improved Targeting Computer Device Improved Cryofiber Web Storage Large Storage Unit Processor Improved Targeting Computer Hackware Hacking Suite Protection Improved Utility Shielding Weapon Axe Energy Gun Gatling Laser Ballistic Gun Gauss Rifle Launcher Proton Missile Launcher Special Weapon Mining Laser Impact Weapon Heavy Mace Slashing Weapon Axe Special Melee Weapon Datajack Build | -11 -10 -9 -9 -8 -8 -8 -7 -6 -5 -5 -5 -5 -4 ------- Run | Scr Mat Mat Min Mat Gar Mat Fac Fac Fac Upp Upp Zhi Pro Slots Evolved 10 | . . 2 . 2 . . 2 2 2 . . . . Power 1 | . . . . . . . 1 . . . . . . Propulsion 3 | . . 1 . 1 . . 1 . . . . . . Utility 5 | . . 1 . 1 . . . 2 1 . . . . Weapon 1 | . . . . . . . . . 1 . . . . Parts Attached 117 | 7 4 6 5 11 2 11 6 29 1 21 4 7 3 Power 16 | 1 1 1 . 1 . 2 1 8 . . . 1 . Engine 9 | 1 1 1 . 1 . . 1 4 . . . . . Core 4 | . . . . . . 2 . 2 . . . . . Reactor 3 | . . . . . . . . 2 . . . 1 . Propulsion 44 | 2 2 1 3 2 . 4 4 12 . 9 1 1 3 Treads 6 | . . . . . . . 1 4 . . . . 1 Leg 23 | 2 2 . . . . 4 3 7 . 3 1 1 . Wheel 5 | . . 1 1 . . . . . . 2 . . 1 Hover 1 | . . . . . . . . 1 . . . . . Flight 9 | . . . 2 2 . . . . . 4 . . 1 Utility 30 | 2 . 2 . 3 1 2 . 8 1 5 2 4 . Device 13 | 1 . 1 . 1 1 1 . 4 . 2 . 2 . Storage 5 | 1 . . . . . . . 2 . 1 1 . . Processor 6 | . . 1 . 1 . 1 . 1 1 . 1 . . Hackware 2 | . . . . 1 . . . 1 . . . . . Protection 4 | . . . . . . . . . . 2 . 2 . Artifact . | . . . . . . . . . . . . . . Weapon 27 | 2 1 2 2 5 1 3 1 1 . 7 1 1 . Energy Gun 6 | . 1 2 . 2 . . . 1 . . . . . Energy Cannon . | . . . . . . . . . . . . . . Ballistic Gun 9 | 2 . . 1 . . 2 . . . 2 1 1 . Ballistic Cannon . | . . . . . . . . . . . . . . Launcher 3 | . . . . 2 . . . . . 1 . . . Special Weapon 1 | . . . . . . 1 . . . . . . . Impact Weapon 4 | . . . . 1 . . . . . 3 . . . Slashing Weapon 2 | . . . . . . . 1 . . 1 . . . Piercing Weapon . | . . . . . . . . . . . . . . Special Melee Weapon 2 | . . . 1 . 1 . . . . . . . . Unidentified Prototypes 5 | . . . . . 1 . . . . . . 4 . Corrupted Parts 3 | . . . . . . . . . . 2 . . 1 System Corruption 19 | . . . . . . . . . . 12 . . 7 Parts Lost 58 | . 5 1 6 8 . . 1 12 . 15 . . 10 Power 9 | . 1 . 1 1 . . . 5 . 1 . . . Propulsion 26 | . 1 1 3 3 . . . 4 . 8 . . 6 Utility 9 | . 1 . . 2 . . . 2 . 3 . . 1 Weapon 14 | . 2 . 2 2 . . 1 1 . 3 . . 3 Highest Loss Streak 14 | . 3 1 4 7 . . 1 8 . 14 . . 6 To Critical Strikes . | . . . . . . . . . . . . . . Average Slot Usage (%) 85 | . 96 77 67 53 36 96 95 97 88 70 88 85 87 Engine 3 | . 12 11 3 . . . 3 6 5 . . . . Core 1 | . . . . . . 8 7 . . . . . . Reactor 1 | . . . . . . . . 4 . . . 2 4 Treads 3 | . . . . . . . 4 13 23 . . . . Leg 15 | . 27 7 . . . 35 33 17 5 8 11 13 11 Flight 5 | . . . 4 8 . . . . . 14 17 14 10 Device 7 | . 13 8 11 1 . 8 7 11 11 6 2 2 5 Storage 5 | . 14 11 11 5 . . . 2 5 5 5 5 5 Processor 15 | . . 11 11 16 18 18 15 13 17 17 20 23 23 Hackware 4 | . . . . 8 9 9 7 9 5 . . . . Protection 2 | . . . . . . . . . . 2 11 7 5 Energy Gun 2 | . 6 16 6 11 . . . 3 5 . . . . Ballistic Gun 6 | . 19 . 5 . . 13 10 2 . 4 5 . 5 Impact Weapon 1 | . . . . . 9 . . . . 3 5 5 4 Slashing Weapon 2 | . . . . . . . 3 6 5 2 5 5 2 Naked Turns . | . . . . . . . . . . . . . . Heaviest Build 54 | 15 16 13 13 16 3 18 27 50 36 32 37 54 54 Greatest Support 60 | 20 20 10 26 9 3 48 36 60 60 60 40 60 60 Greatest Overweight (x) 8 | . . 1 1 5 . 1 . 3 . 8 . . 3 Average Overweight (x) . | . . . . . . . . . . . . . 1 Largest Inventory Capacity 15 | 8 8 8 8 8 5 5 5 15 15 15 15 15 15 Average Capacity 9 | 7 8 8 8 6 5 5 5 8 15 10 12 15 14 Most Carried 15 | 7 8 8 8 8 5 5 5 15 12 11 15 15 15 Average Carried 8 | 5 7 6 7 6 4 4 4 7 12 7 12 14 14 Final Capacity 15 | 8 8 8 8 5 5 5 5 15 15 10 15 15 5 Final Carried 15 | 7 8 8 8 5 5 5 5 13 12 9 15 15 5 Class Distribution -------------------- 51% | Scavenger-Mutant 40% | Mutant 4% | Hacker-Mutant Dominant Class ---------------- Mutant | -10/Materials Mutant | -9/Materials Mutant | -9/Mines Mutant | -8/Materials Mutant | -8/Garrison Mutant | -8/Materials Mutant | -7/Factory Scavenger-Mutant | -6/Factory Scavenger-Assassin | -5/Factory Scavenger-Mutant | -5/Upper Caves Scavenger-Mutant | -5/Upper Caves Scavenger-Mutant | -5/Zhirov Scavenger-Mutant | -4/Proximity Caves Resources | -11 -10 -9 -9 -8 -8 -8 -7 -6 -5 -5 -5 -5 -4 ----------- Run | Scr Mat Mat Min Mat Gar Mat Fac Fac Fac Upp Upp Zhi Pro Matter Collected 1657 | 253 217 16 87 65 . 225 . 386 . 207 55 . 146 Remotely . | . . . . . . . . . . . . . . Salvage Created 2438 | 52 230 16 58 133 . 293 115 920 . 471 62 . 88 Parts 118 | 7 10 3 8 10 . 11 9 38 . 19 2 . 1 Haulers Intercepted 1 | . . . . . . . . 1 . . . . . Recyclers Shooed 3 | 1 . . . . . 1 . 1 . . . . . Parts Field Recycled . | . . . . . . . . . . . . . . Retrieved Matter . | . . . . . . . . . . . . . . Parts Self-Destructed 18 | . . . . . . . . . . 14 1 . 3 Prevented 10 | . . . . . . . . . . 10 . . . Kills | -11 -10 -9 -9 -8 -8 -8 -7 -6 -5 -5 -5 -5 -4 ------- Run | Scr Mat Mat Min Mat Gar Mat Fac Fac Fac Upp Upp Zhi Pro Combat Hostiles Destroyed 43 | . 5 . 4 6 . 3 3 12 . 7 1 . 2 Melee 15 | . . . . . . . . 7 . 6 1 . 1 Guns 25 | . 5 . 4 6 . 3 3 4 . . . . . AOE 1 | . . . . . . . . 1 . . . . . Classes Destroyed 13 | 1 2 1 1 . . 2 1 3 . 2 . . . Worker 2 | . . . . . . . . 2 . . . . . Tunneler 3 | 2 . . . . . . . 1 . . . . . Hauler 1 | . . . . . . . . 1 . . . . . Recycler 3 | . . . . . . 2 . 1 . . . . . Operator 1 | . . 1 . . . . . . . . . . . Watcher 2 | . 1 . . . . . . 1 . . . . . Swarmer 19 | . . . 4 4 . . 2 3 . 6 . . . Grunt 15 | . 5 . . 2 . 1 . 7 . . . . . Duelist 1 | . . . . . . . 1 . . . . . . Sentry 3 | . . . . . . 2 . 1 . . . . . Hunter 2 | . . . . . . . . . . 1 1 . . Programmer 3 | . . . . . . . . 1 . . . . 2 Packrat 1 | . . . . . . . . . . 1 . . . Samaritan 3 | . . . . . . . . . . 3 . . . Best Kill Streak 6 | 1 3 1 4 4 . 4 3 5 . 6 1 . 2 Combat Bots Only 6 | . 2 . 4 4 . 2 3 4 . 6 1 . 2 Max Kills in Single Turn 2 | 1 1 1 1 1 . 2 1 1 . 1 1 . 1 Gunslinging . | . . . . . . . . . . . . . . Exploded 1 | . . . . . . . . 1 . . . . . Melee 1 | . . . . . . . . 1 . 1 1 . 1 Uniques/NPCs Destroyed . | . . . . . . . . . . . . . . Combat | -11 -10 -9 -9 -8 -8 -8 -7 -6 -5 -5 -5 -5 -4 -------- Run | Scr Mat Mat Min Mat Gar Mat Fac Fac Fac Upp Upp Zhi Pro Damage Taken 8147 | . 685 75 424 804 122 267 305 2415 . 1478 259 . 1313 Core 2080 | . 107 22 69 344 65 45 27 392 . 537 42 . 430 Absorbed by Shields 42 | . . . . . 42 . . . . . . . . Redirected to Shielding 76 | . . . . . . . . . . . . . 76 Core Remaining (%) 66 | 100 57 . 77 . . 17 96 53 . . . . . Volleys Fired 109 | 6 31 3 9 10 . 11 11 26 . 2 . . . Largest 2 | 2 2 2 2 2 . 2 2 1 . 2 . . . Hottest 160 | 40 85 105 105 160 . 56 56 80 . 119 . . . Shots Fired 178 | 12 62 5 15 18 . 22 12 26 . 5 . . 1 Gun 176 | 12 62 5 15 18 . 22 12 26 . 3 . . 1 Cannon . | . . . . . . . . . . . . . . Launcher 2 | . . . . . . . . . . 2 . . . Special . | . . . . . . . . . . . . . . Kinetic 113 | 12 46 . 4 . . 22 12 15 . 1 . . 1 Thermal 55 | . 16 2 6 18 . . . 11 . 2 . . . Explosive . | . . . . . . . . . . . . . . Electromagnetic 10 | . . 3 5 . . . . . . 2 . . . Robot Hit Streak 16 | 3 8 1 2 11 . 16 11 13 . 1 . . . Robot Miss Streak 3 | 1 3 2 3 2 . 2 1 3 . 2 . . . Penetration Max 1 | . . . . . . 1 . 1 . . . . . Secondary Targets 3 | . . . 1 1 . 1 . . . . . . . Max Gunslinging Chain 1 | . . . 1 1 . 1 . . . . . . . Shots Hit Robots 201 | 7 37 2 8 18 1 17 11 66 . 13 6 . 15 Core Hits 95 | 3 15 1 4 11 . 8 7 31 . 11 2 . 2 Critical Kills 3 | . . . . . . . . . . 2 . . 1 Critical Parts Destroyed 4 | . 1 . . . . 1 . . . 1 . . 1 Critical Strikes 15 | . 3 . . . . 1 . 5 . 3 1 . 2 Burn 2 | . 2 . . . . . . . . . . . . Destroy 2 | . 1 . . . . 1 . . . . . . . Smash 5 | . . . . . . . . . . 3 . . 2 Sever 6 | . . . . . . . . 5 . . 1 . . Melee Attacks 105 | . . . 1 . 2 . 1 59 . 18 7 . 17 Impact 21 | . . . . . 1 . . . . 11 . . 9 Slashing 82 | . . . . . . . 1 59 . 7 7 . 8 Piercing . | . . . . . . . . . . . . . . Sneak Attacks 10 | . . . 1 . 1 . . 3 . 5 . . . Combat Hostiles 1 | . . . . . . . . . . 1 . . . Follow-up Attacks 6 | . . . . . . . . . . 1 . . 5 Damage Inflicted 5299 | 89 509 33 107 310 . 403 203 2150 . 679 208 . 608 Guns 2026 | 89 497 33 96 297 . 403 203 396 . 12 . . . Cannons . | . . . . . . . . . . . . . . Explosions 45 | . . . . . . . . . . 45 . . . Melee 3192 | . . . . . . . . 1754 . 622 208 . 608 Ramming 36 | . 12 . 11 13 . . . . . . . . . Kinetic 1239 | 89 357 . 15 . . 403 203 172 . . . . . Thermal 734 | . 140 15 46 297 . . . 224 . 12 . . . Explosive . | . . . . . . . . . . . . . . Electromagnetic 98 | . . 18 35 . . . . . . 45 . . . Impact 670 | . . . . . . . . . . 296 . . 374 Slashing 2522 | . . . . . . . . 1754 . 326 208 . 234 Piercing . | . . . . . . . . . . . . . . Highest Corruption 20 | . . . 2 . . . . 4 . 12 5 5 20 Average Corruption 6 | . . . 2 . . . . 3 . 6 5 5 13 Corruption Purged 7 | . . . . . . . . . . 7 . . . Corruption Blocked . | . . . . . . . . . . . . . . Effects 46 | . . . 2 . . . . 1 . 14 9 3 17 Message Errors 11 | . . . 1 . . . . . . 4 3 . 3 Matter Fused 14 | . . . 1 . . . . 1 . 2 2 1 7 Heat Flow Errors 6 | . . . . . . . . . . 2 1 1 2 Energy Discharges 4 | . . . . . . . . . . 2 . 1 1 Data Loss (minor) 6 | . . . . . . . . . . 3 2 . 1 Data Loss (major) 2 | . . . . . . . . . . . 1 . 1 Misfires 2 | . . . . . . . . . . 1 . . 1 Alerts 1 | . . . . . . . . . . . . . 1 Overload Shots . | . . . . . . . . . . . . . . Overflow Damage 247 | . . . . . . . . 58 . 83 . . 106 Projectiles . | . . . . . . . . . . . . . . Explosions . | . . . . . . . . . . . . . . Melee 247 | . . . . . . . . 58 . 83 . . 106 Knockbacks 4 | . . . . . . . . . . 1 . . 3 Impact 4 | . . . . . . . . . . 1 . . 3 Kinetic . | . . . . . . . . . . . . . . Secondary . | . . . . . . . . . . . . . . Self-Inflicted Damage 11 | . . . 5 6 . . . . . . . . . Shots . | . . . . . . . . . . . . . . Rammed 3 | . . . 1 2 . . . . . . . . . Targets Rammed 8 | . 5 . 1 2 . . . . . . . . . Kicked 5 | . 5 . . . . . . . . . . . . Crushed . | . . . . . . . . . . . . . . Highest Temperature 375 | . 375 90 180 318 . 30 . 55 . 119 223 206 268 Average Temperature 117 | . 141 46 81 151 . 9 . 31 . 57 113 114 112 Received Heat Transfer 1791 | . 381 42 130 207 69 126 . 654 . . . . 182 Effects 3 | . 1 . . 2 . . . . . . . . . Energy Bleed 3 | . 1 . . 2 . . . . . . . . . Siege Activations . | . . . . . . . . . . . . . . Robots Corrupted . | . . . . . . . . . . . . . . Combat Hostiles . | . . . . . . . . . . . . . . Parts Fried 1 | . . . . . . . . . . 1 . . . Impact Corruptions 11 | . . . . . . . . . . 5 . . 6 Robots Melted . | . . . . . . . . . . . . . . Combat Hostiles . | . . . . . . . . . . . . . . Parts Melted 5 | . 1 . . 1 . . . 3 . . . . . Heat Transferred 1829 | . 481 37 111 675 . . . 500 . 25 . . . Parts Sabotaged . | . . . . . . . . . . . . . . Parts Stolen . | . . . . . . . . . . . . . . Parts Stripped . | . . . . . . . . . . . . . . Power Chain Reactions . | . . . . . . . . . . . . . . Missiles Intercepted . | . . . . . . . . . . . . . . Alert | -11 -10 -9 -9 -8 -8 -8 -7 -6 -5 -5 -5 -5 -4 ------- Run | Scr Mat Mat Min Mat Gar Mat Fac Fac Fac Upp Upp Zhi Pro Peak Influence 311 | 10 119 74 117 171 154 171 144 311 56 . . . . Initial 104 | . 6 9 27 22 104 74 15 70 56 . . . . Average 107 | 3 46 45 81 82 145 126 85 172 56 . . . . Maximum Alert Level 1 | . . . . . . . . 1 . . . . . Low Security (%) 84 | 100 100 100 100 100 100 100 100 51 100 . . . . Level 1 15 | . . . . . . . . 48 . . . . . Level 2 . | . . . . . . . . . . . . . . Level 3 . | . . . . . . . . . . . . . . Level 4 . | . . . . . . . . . . . . . . Level 5 . | . . . . . . . . . . . . . . High Security . | . . . . . . . . . . . . . . Max Security . | . . . . . . . . . . . . . . Squads Dispatched 12 | . 3 2 . 3 . 1 1 1 . . . . 1 Investigation 3 | . 1 . . 1 . . 1 . . . . . . Extermination 1 | . . . . . . . . 1 . . . . . Reinforcement 7 | . 2 2 . 2 . 1 . . . . . . . Assault 1 | . . . . . . . . . . . . . 1 Garrison . | . . . . . . . . . . . . . . Intercept . | . . . . . . . . . . . . . . Searches Triggered . | . . . . . . . . . . . . . . Construction Impeded . | . . . . . . . . . . . . . . Haulers Reinforced . | . . . . . . . . . . . . . . Active Scanning Responses . | . . . . . . . . . . . . . . Cargo Convoy Interrupts . | . . . . . . . . . . . . . . Stealth | -11 -10 -9 -9 -8 -8 -8 -7 -6 -5 -5 -5 -5 -4 --------- Run | Scr Mat Mat Min Mat Gar Mat Fac Fac Fac Upp Upp Zhi Pro Distress Signals 3 | . 2 . . . . 1 . . . . . . . Communications Jammed . | . . . . . . . . . . . . . . Distress Signals . | . . . . . . . . . . . . . . Times Spotted 120 | . 15 8 16 14 3 9 5 24 . 11 1 . 14 Peak Tracking Total 12 | . 4 6 11 6 3 8 3 7 . 9 1 . 12 Tactical Retreats 10 | . . . 2 1 . . . 6 . 1 . . . Traps | -11 -10 -9 -9 -8 -8 -8 -7 -6 -5 -5 -5 -5 -4 ------- Run | Scr Mat Mat Min Mat Gar Mat Fac Fac Fac Upp Upp Zhi Pro Traps Triggered 5 | . 1 . . . 3 . 1 . . . . . . Indirectly . | . . . . . . . . . . . . . . Trap Hack Attempts . | . . . . . . . . . . . . . . Triggered . | . . . . . . . . . . . . . . Disarmed . | . . . . . . . . . . . . . . Reprogrammed . | . . . . . . . . . . . . . . Reused . | . . . . . . . . . . . . . . Traps Extracted . | . . . . . . . . . . . . . . Installed . | . . . . . . . . . . . . . . Triggered . | . . . . . . . . . . . . . . Machines | -11 -10 -9 -9 -8 -8 -8 -7 -6 -5 -5 -5 -5 -4 ---------- Run | Scr Mat Mat Min Mat Gar Mat Fac Fac Fac Upp Upp Zhi Pro Machines Disabled 2 | . . . . . 1 . 1 . . . . . . Max in Single Turn 1 | . . . . . 1 . 1 . . . . . . Garrison Relay 1 | . . . . . 1 . . . . . . . . Machines Sabotaged . | . . . . . . . . . . . . . . Garrisons Compromised . | . . . . . . . . . . . . . . Overloaded Fab Kills . | . . . . . . . . . . . . . . Hacking | -11 -10 -9 -9 -8 -8 -8 -7 -6 -5 -5 -5 -5 -4 --------- Run | Scr Mat Mat Min Mat Gar Mat Fac Fac Fac Upp Upp Zhi Pro Machines Accessed 20 | . 5 1 1 4 . 1 2 2 . . . 4 . Terminals 12 | . 5 1 . 3 . 1 1 1 . . . . . Fabricators . | . . . . . . . . . . . . . . Repair Stations . | . . . . . . . . . . . . . . Recycling Units 1 | . . . . . . . 1 . . . . . . Scanalyzers . | . . . . . . . . . . . . . . Garrison Access 2 | . . . . 1 . . . 1 . . . . . Total Hacks 59 | . 14 2 1 10 . 5 5 5 . . . 17 . Successful 38 | . 6 1 1 8 . 2 2 1 . . . 17 . Failed 21 | . 8 1 . 2 . 3 3 4 . . . . . Catastrophic 2 | . 1 . . . . . . 1 . . . . . Database Lockouts . | . . . . . . . . . . . . . . Manual 11 | . 5 . . 2 . 3 1 . . . . . . Terminals 36 | . 14 2 . 9 . 5 4 2 . . . . . Fabricators . | . . . . . . . . . . . . . . Repair Stations . | . . . . . . . . . . . . . . Recycling Units 1 | . . . . . . . 1 . . . . . . Scanalyzers . | . . . . . . . . . . . . . . Garrison Access 4 | . . . . 1 . . . 3 . . . . . Terminal Hacks 32 | . 4 1 1 6 . 1 1 1 . . . 17 . Record 7 | . 1 . . 1 . . . . . . . 5 . Part Schematic 4 | . . . . . . . . . . . . 4 . Robot Analysis 5 | . . . . . . . 1 . . . . 4 . Prototype ID Bank 6 | . 1 . . . . 1 . . . . . 4 . Open Door 1 | . . . 1 . . . . . . . . . . Level Access Points 1 | . 1 . . . . . . . . . . . . Branch Access Points 1 | . . 1 . . . . . . . . . . . Emergency Access Points 1 | . . . . 1 . . . . . . . . . Terminal Index 1 | . . . . 1 . . . . . . . . . Locate Traps 1 | . . . . . . . . 1 . . . . . Transport Status 1 | . . . . 1 . . . . . . . . . Reinforcement Status 1 | . . . . 1 . . . . . . . . . Recall Reinforcements 1 | . . . . 1 . . . . . . . . . Registered Components 1 | . 1 . . . . . . . . . . . . Fabricator Hacks . | . . . . . . . . . . . . . . Repair Station Hacks . | . . . . . . . . . . . . . . Recycling Unit Hacks . | . . . . . . . . . . . . . . Scanalyzer . | . . . . . . . . . . . . . . Garrison Access Hacks 1 | . . . . 1 . . . . . . . . . Unlock Access 1 | . . . . 1 . . . . . . . . . Unauthorized Hacks 5 | . 2 . . 1 . 1 1 . . . . . . Terminals 4 | . 2 . . 1 . 1 . . . . . . . Botnet 4 | . 2 . . 1 . 1 . . . . . . . Fabricators . | . . . . . . . . . . . . . . Repair Stations . | . . . . . . . . . . . . . . Recycling Units 1 | . . . . . . . 1 . . . . . . Tunnel 1 | . . . . . . . 1 . . . . . . Scanalyzers . | . . . . . . . . . . . . . . Garrison Access . | . . . . . . . . . . . . . . Data Cores Recovered 1 | . . 1 . . . . . . . . . . . Used 1 | . . 1 . . . . . . . . . . . Hacking Detections 13 | . 5 1 . 3 . 1 1 2 . . . . . Full Trace Events 1 | . . . . 1 . . . . . . . . . Feedback Events . | . . . . . . . . . . . . . . Feedback Blocked . | . . . . . . . . . . . . . . Robot Schematics Acquired . | . . . . . . . . . . . . . . Robots Built . | . . . . . . . . . . . . . . Authchips . | . . . . . . . . . . . . . . Time . | . . . . . . . . . . . . . . Total Robot Build Rating . | . . . . . . . . . . . . . . Part Schematics Acquired 4 | . . . . . . . . . . . . 4 . Parts Built . | . . . . . . . . . . . . . . Authchips . | . . . . . . . . . . . . . . Time . | . . . . . . . . . . . . . . Total Part Build Rating . | . . . . . . . . . . . . . . Parts Repaired . | . . . . . . . . . . . . . . Time . | . . . . . . . . . . . . . . Parts Recycled . | . . . . . . . . . . . . . . Recycled Matter . | . . . . . . . . . . . . . . Retrieved Matter . | . . . . . . . . . . . . . . Retrieved Components . | . . . . . . . . . . . . . . Parts Scanalyzed . | . . . . . . . . . . . . . . Part Schematics Acquired . | . . . . . . . . . . . . . . Parts Damaged . | . . . . . . . . . . . . . . Bothacking | -11 -10 -9 -9 -8 -8 -8 -7 -6 -5 -5 -5 -5 -4 ------------ Run | Scr Mat Mat Min Mat Gar Mat Fac Fac Fac Upp Upp Zhi Pro Used RIF Installer . | . . . . . . . . . . . . . . Robots Hacked 2 | . . . 1 . 1 . . . . . . . . Non-combat . | . . . . . . . . . . . . . . Combat 2 | . . . 1 . 1 . . . . . . . . Robot Hacks Applied 2 | . . . 1 . 1 . . . . . . . . parse_system 2 | . . . 1 . 1 . . . . . . . . Relay Couplers Released 5 | . . . . . 5 . . . . . . . . Machine Destruction 5 | . . . . . 5 . . . . . . . . Fabnet Peak Effective % . | . . . . . . . . . . . . . . Robots Rewired . | . . . . . . . . . . . . . . Allies Hacked . | . . . . . . . . . . . . . . Hacks Repelled . | . . . . . . . . . . . . . . Allies | -11 -10 -9 -9 -8 -8 -8 -7 -6 -5 -5 -5 -5 -4 -------- Run | Scr Mat Mat Min Mat Gar Mat Fac Fac Fac Upp Upp Zhi Pro Total Allies . | . . . . . . . . . . . . . . Largest Group . | . . . . . . . . . . . . . . Highest-Rated Group . | . . . . . . . . . . . . . . Highest-Rated Ally . | . . . . . . . . . . . . . . Total Orders 1 | . . . . . 1 . . . . . . . . RETURN 1 | . . . . . 1 . . . . . . . . Ally Attacks . | . . . . . . . . . . . . . . Total Damage . | . . . . . . . . . . . . . . Kills . | . . . . . . . . . . . . . . Allies Corrupted . | . . . . . . . . . . . . . . Allies Melted . | . . . . . . . . . . . . . . Intel | -11 -10 -9 -9 -8 -8 -8 -7 -6 -5 -5 -5 -5 -4 ------- Run | Scr Mat Mat Min Mat Gar Mat Fac Fac Fac Upp Upp Zhi Pro Robot Analysis Total 5 | . . . . . . . 1 . . . . 4 . Derelict Logs Recovered 5 | . . . 1 . . . . . . 3 1 . . Drone Launches 1 | . . . . . 1 . . . . . . . . Drone Recoveries 1 | . . . . . 1 . . . . . . . . Exploration | -11 -10 -9 -9 -8 -8 -8 -7 -6 -5 -5 -5 -5 -4 ------------- Run | Scr Mat Mat Min Mat Gar Mat Fac Fac Fac Upp Upp Zhi Pro Turns Passed 4907 | 149 525 98 231 215 134 422 287 995 123 702 415 187 424 Spaces Moved 3325 | 93 329 90 244 168 135 258 257 505 77 440 315 139 275 Core 354 | 5 . . 136 69 135 5 . . . 3 . . 1 Treads 242 | . . . . . . . . 160 77 3 . . 2 Legs 2244 | 88 329 . . . . 253 257 345 . 358 315 139 160 Wheels 311 | . . 90 108 . . . . . . 1 . . 112 Hover . | . . . . . . . . . . . . . . Flight 174 | . . . . 99 . . . . . 75 . . . Fastest Speed 29 | 50 120 80 50 40 50 50 90 90 160 29 120 120 50 Average Speed 111 | 116 120 86 67 76 50 140 90 131 160 111 120 120 133 Slowest Speed 450 | 120 120 95 95 300 50 180 90 330 160 450 120 120 260 Overloaded Moves . | . . . . . . . . . . . . . . Propulsion Burnouts . | . . . . . . . . . . . . . . Robots Hopped 2 | . . . . 2 . . . . . . . . . Cave-ins Triggered . | . . . . . . . . . . . . . . Exploration Rate (%) 35 | 5 68 15 64 16 43 24 8 19 3 59 61 61 51 Regions Visited 13 Branch Regions 5 Pre-discovered Areas 6 | . . . . . . . 1 . . 2 . 3 . Known Exits Taken 9 | . 1 1 1 1 . . . 1 1 1 1 1 . Unknown Exits Taken 3 | 1 . . . . . 1 1 . . . . . . Scrap Searched 8 | . . . 2 . . . . . . 3 3 . . Spaces Dug . | . . . . . . . . . . . . . . Terrain Destroyed 2 | . . . . . . . . 2 . . . . . Melee . | . . . . . . . . . . . . . . Projectile 2 | . . . . . . . . 2 . . . . . AOE . | . . . . . . . . . . . . . . Terrain Rammed . | . . . . . . . . . . . . . . Walls Destroyed . | . . . . . . . . . . . . . . Machines Disabled . | . . . . . . . . . . . . . . Actions | -11 -10 -9 -9 -8 -8 -8 -7 -6 -5 -5 -5 -5 -4 --------- Run | Scr Mat Mat Min Mat Gar Mat Fac Fac Fac Upp Upp Zhi Pro Total 4146 | 120 403 104 294 231 199 295 296 704 77 613 340 160 310 Wait 325 | 4 18 . 29 27 20 9 20 50 . 128 4 . 16 Move 3308 | 92 328 89 243 163 134 257 256 504 76 439 314 138 275 Hop 2 | . . . . 2 . . . . . . . . . Pick Up 72 | 10 7 5 4 7 . 2 1 18 . 6 7 5 . Fast Attach 61 | 5 1 2 2 7 . 7 3 15 . 10 1 6 2 Attach 34 | 2 . 4 3 3 2 3 1 4 1 10 . . 1 Detach 8 | . . . . 2 2 2 . . . 1 . . 1 Swap 23 | . 3 . . 1 . 1 2 10 . 1 3 2 . Drop 59 | 1 10 1 2 7 . 3 1 18 . . 4 9 3 Fire 109 | 6 31 3 9 10 . 11 11 26 . 2 . . . Melee 98 | . . . 1 . 2 . 1 59 . 16 7 . 12 Ram 3 | . . . 1 2 . . . . . . . . . Kick 5 | . 5 . . . . . . . . . . . . Crush . | . . . . . . . . . . . . . . Escape Stasis 39 | . . . . . 39 . . . . . . . . Rewire . | . . . . . . . . . . . . . . Trap . | . . . . . . . . . . . . . . Miscellaneous . | . . . . . . . . . . . . . . Route ------- -11/Scrapyard -10/Materials (discovered 3 exits: *Mat x3) -9/Materials -9/Mines -8/Materials -8/Garrison -8/Materials -7/Factory -6/Factory -5/Factory (discovered 2 exits: *Fac / *Upp) -5/Upper Caves -5/Upper Caves (discovered 2 exits: *Fac / *Zhi) -5/Zhirov -4/Proximity Caves (discovered 1 exit: *Fac) History --------- Turn | Location | Event 5 | -11/Scrapyard | Discovered new exit (range 15) 150 | -11/Scrapyard | Entered Materials 176 | -10/Materials | Identified exit to Materials 315 | -10/Materials | Build established: Mutant 675 | -10/Materials | Entered another Materials area 675 | -9/Materials | Evolved 2 slots: Propulsion x1, Utility x1 701 | -9/Materials | Lost 3 parts (1n1u1w) 756 | -9/Materials | Identified exit to Mines 773 | -9/Materials | Entered Mines 806 | -9/Mines | Assembled infested the area 811 | -9/Mines | Assisted by a Guerilla fighting off Assembled 896 | -9/Mines | Identified exit to Materials 919 | -9/Mines | YI-UF0 nonchalantly dropped a Grenade Launcher on the ground 933 | -9/Mines | Lost 4 parts (2n2w) 949 | -9/Mines | Found the Drone Emporium 952 | -9/Mines | Found Prototype Device 1004 | -9/Mines | Entered Materials 1004 | -8/Materials | Evolved 2 slots: Propulsion x1, Utility x1 1189 | -8/Materials | Lost 7 parts (1p2n2u2w) 1200 | -8/Materials | Core integrity fell below 50% 1213 | -8/Materials | Identified exit to Garrison 1219 | -8/Materials | Entered Garrison 1221 | -8/Garrison | Identified Thief Drone Bay 1240 | -8/Garrison | Triggered checkpoint 1242 | -8/Garrison | Garrison Relay disabled 1336 | -8/Garrison | Triggered checkpoint 1348 | -8/Garrison | Discovered new exit (range 10) 1353 | -8/Garrison | Entered Materials 1758 | -8/Materials | Discovered new exit (range 10) 1759 | -8/Materials | Core integrity fell below 20% 1775 | -8/Materials | Entered Factory 1775 | -7/Factory | Evolved 2 slots: Power x1, Propulsion x1 1967 | -7/Factory | Discovered new exit (range 10) 2062 | -7/Factory | Entered another Factory area 2062 | -6/Factory | Evolved 2 slots: Utility x2 2562 | -6/Factory | Lost 8 parts (3p3n1u1w) 2650 | -6/Factory | Build established: Scavenger-Mutant 3028 | -6/Factory | Discovered new exit (range 16) 3055 | -6/Factory | Identified exit to Factory 3057 | -6/Factory | Entered another Factory area 3057 | -5/Factory | Evolved 2 slots: Utility x1, Weapon x1 3069 | -5/Factory | Lost 3 parts (2p1u) 3145 | -5/Factory | Discovered new exit (range 8) 3154 | -5/Factory | Discovered new exit (range 17) 3154 | -5/Factory | Identified exit to Factory 3178 | -5/Factory | Identified exit to Upper Caves 3180 | -5/Factory | Entered Upper Caves 3225 | -5/Upper Caves | Core integrity fell below 50% 3256 | -5/Upper Caves | Lost 14 parts (1p8n3u2w) 3304 | -5/Upper Caves | Learned location of Warlord (-4) 3364 | -5/Upper Caves | System corruption reached 10% 3498 | -5/Upper Caves | Learned Factory trap positions 3771 | -5/Upper Caves | Discovered new exit (range 7) 3793 | -5/Upper Caves | Identified exit to Upper Caves 3882 | -5/Upper Caves | Entered another Upper Caves area 3918 | -5/Upper Caves | Discovered exit to Factory (range 6) 4163 | -5/Upper Caves | Encountered a Warlord checkpoint 4176 | -5/Upper Caves | Learned Factory terminal intel 4278 | -5/Upper Caves | Discovered new exit (range 17) 4296 | -5/Upper Caves | Identified exit to Zhirov 4297 | -5/Upper Caves | Entered Zhirov 4297 | -5/Zhirov | Discovered new exit (range 3) 4320 | -5/Zhirov | Met Zhirov 4346 | -5/Zhirov | Learned location of Quarantine (-2) 4346 | -5/Zhirov | Learned location of Testing (-3) 4346 | -5/Zhirov | Learned location of Command (-1) 4353 | -5/Zhirov | Zhirov requested help retrieving the SGEMP Prototype 4372 | -5/Zhirov | Found Alien Artifact 4372 | -5/Zhirov | Identified Integrated Reactor 4372 | -5/Zhirov | Installed Integrated Reactor, increased core energy generation (+10) 4391 | -5/Zhirov | Found Alien Artifact 4482 | -5/Zhirov | Identified exit to Proximity Caves 4484 | -5/Zhirov | Entered Proximity Caves 4747 | -4/Proximity Caves | Lost 4 parts (3n1w) 4888 | -4/Proximity Caves | Discovered exit to Factory (range 14) 4891 | -4/Proximity Caves | Attracted the attention of an 0b10 outpost 4899 | -4/Proximity Caves | Core integrity fell below 20% 4908 | -4/Proximity Caves | Destroyed by G-67 Veteran with Plasma Rifle Last Messages --------------- 04895_ C-30 ARC bursts open, deploying its payload. 04895_ G-73 Enforcer unfolds itself. 04895_ L-61 Swordsman unfolds itself. 04895_ G-67 Veteran unfolds itself. 04895_ B-60 Warrior unfolds itself. 04895_ E-15 Imp unfolds itself. 04895_ Critical hit (Burn: +50). 04895_ Com. Wheel destroyed. 04897_ E-15 Imp destroyed. 04897_ Acquired 3 matter. 04900_ System corrupted: Heat flow error (+215). 04900_ Gauss Rifle destroyed. 04900_ Penetrated by Slug. 04901_ Cesium-ion Thruster fries itself beyond repair. 04905_ VTOL Module destroyed. 04905_ Actuator Array destroyed. 04906_ Cesium-ion Thruster fries itself beyond repair. 04907_ Dropped Exp. Power Shielding. 04907_ Flexi-carbon Leg destroyed. 04907_ Dropped Lrg. Storage Unit. Map ----- +----------------------------------------------------+ | | | | | | | | | | | | | | | | | | | | | ?????????????????????????????????????????????????? | | ?????????????????????????????????????????????????? | | ?????????????????????????????????????????????????? | | ?????????????????????????????????????????????????? | | ?????????????????????????????????????????????????? | | ?????????????????????????????????????????????????? | | ?????????????????????????????????????????????????? | | ?????????????????????????????????????????????????? | | ?????????????????????????????????????????????????? | | ?????????????????????????????????????????????????? | | ?????????????????????????????????????????????????? | | ?????????????????????????????????????????????????? | | ?????????????????????????????????????????????????? | | ?????????????????????????????##??????????????????? | | ?????????????????????######## #???????###????????? | | ?####?????????????#### ![@!lb#######"## ##???????? | | ?# ####????????#